[Event "Titled Tuesday Blitz March 14 Late 2023"]
[White "Volkov, Maksim"]
[Black "Kostiukov, Alexandr"]
[WhiteFideId "54123070"]
[BlackFideId "14108100"]
[WhiteElo "2312"]
[BlackElo "2202"]
[Result "1-0"]
[Round "02"]
[TimeControl "180+1"]
[Date "2023.03.14"]
[WhiteClock "0:00:04"]
[BlackClock "0:00:03"]

1. e4 {[%clk 0:03:00]}  c5 {[%clk 0:02:59]} 2. Nf3 {[%clk 0:03:00]}  g6 {[%clk 0:02:59]} 3. d4 {[%clk 0:02:59]}  cxd4 {[%clk 0:02:59]} 4. Nxd4 {[%clk 0:02:59]}  Bg7 {[%clk 0:02:59]} 5. c4 {[%clk 0:02:59]}  Nf6 {[%clk 0:02:56]} 6. Nc3 {[%clk 0:02:59]}  Nc6 {[%clk 0:02:56]} 7. Be3 {[%clk 0:02:59]}  O-O {[%clk 0:02:54]} 8. Be2 {[%clk 0:02:59]}  Nxd4 {[%clk 0:02:49]} 9. Bxd4 {[%clk 0:02:59]}  Qa5 {[%clk 0:02:49]} 10. O-O {[%clk 0:02:56]}  d6 {[%clk 0:02:49]} 11. f3 {[%clk 0:02:56]}  Be6 {[%clk 0:02:46]} 12. Qd2 {[%clk 0:02:28]}  Rfc8 {[%clk 0:02:44]} 13. b3 {[%clk 0:02:24]}  b5 {[%clk 0:02:43]} 14. Rab1 {[%clk 0:01:42]}  bxc4 {[%clk 0:02:42]} 15. b4 {[%clk 0:01:42]}  Qa3 {[%clk 0:02:18]} 16. Nb5 {[%clk 0:01:36]}  Qa4 {[%clk 0:02:16]} 17. Nc3 {[%clk 0:01:36]}  Qa3 {[%clk 0:02:02]} 18. Rfd1 {[%clk 0:01:25]}  Rab8 {[%clk 0:01:57]} 19. b5 {[%clk 0:01:22]}  Nd7 {[%clk 0:01:46]} 20. Bxg7 {[%clk 0:01:10]}  Kxg7 {[%clk 0:01:47]} 21. Kh1 {[%clk 0:01:10]}  Ne5 {[%clk 0:01:38]} 22. f4 {[%clk 0:01:00]}  Nd3 {[%clk 0:01:34]} 23. Rf1 {[%clk 0:01:01]}  Qa5 {[%clk 0:01:25]} 24. f5 {[%clk 0:00:58]}  Bd7 {[%clk 0:01:25]} 25. a4 {[%clk 0:00:53]}  f6 {[%clk 0:01:25]} 26. fxg6 {[%clk 0:00:50]}  hxg6 {[%clk 0:01:24]} 27. Rbd1 {[%clk 0:00:46]}  Rc5 {[%clk 0:01:23]} 28. Nd5 {[%clk 0:00:38]}  Qxd2 {[%clk 0:01:13]} 29. Rxd2 {[%clk 0:00:39]}  Ne5 {[%clk 0:01:03]} 30. Nxe7 {[%clk 0:00:37]}  Be6 {[%clk 0:01:03]} 31. Rxd6 {[%clk 0:00:36]}  Kf7 {[%clk 0:00:59]} 32. Nd5 {[%clk 0:00:33]}  Bxd5 {[%clk 0:01:00]} 33. Rfxf6+ {[%clk 0:00:31]}  Ke7 {[%clk 0:00:59]} 34. exd5 {[%clk 0:00:31]}  Rxd5 {[%clk 0:00:43]} 35. Rxd5 {[%clk 0:00:15]}  Kxf6 {[%clk 0:00:39]} 36. Rc5 {[%clk 0:00:16]}  Rd8 {[%clk 0:00:34]} 37. h3 {[%clk 0:00:16]}  Rd2 {[%clk 0:00:30]} 38. Bf1 {[%clk 0:00:15]}  Rd1 {[%clk 0:00:28]} 39. Kg1 {[%clk 0:00:15]}  Rc1 {[%clk 0:00:28]} 40. a5 {[%clk 0:00:15]}  Ke6 {[%clk 0:00:21]} 41. Rc7 {[%clk 0:00:15]}  Rb1 {[%clk 0:00:18]} 42. a6 {[%clk 0:00:08]}  Kd6 {[%clk 0:00:15]} 43. Rxa7 {[%clk 0:00:07]}  c3 {[%clk 0:00:13]} 44. Ra8 {[%clk 0:00:04]}  Nc4 {[%clk 0:00:07]} 45. Rc8 {[%clk 0:00:03]}  Ne3 {[%clk 0:00:06]} 46. Rxc3 {[%clk 0:00:04]}  Nxf1 {[%clk 0:00:06]} 47. a7 {[%clk 0:00:03]}  Nd2+ {[%clk 0:00:03]} 48. Kf2 {[%clk 0:00:03]}  Ra1 {[%clk 0:00:03]} 49. Rd3+ {[%clk 0:00:03]}  Ke5 {[%clk 0:00:02]} 50. Rxd2 {[%clk 0:00:04]}  Rxa7 {[%clk 0:00:02]} 51. Rb2 {[%clk 0:00:04]}  Rb7 {[%clk 0:00:03]} 52. b6 {[%clk 0:00:04]} 1-0


[Site "https://www.chess.com"]

[Event "Titled Tuesday Blitz March 14 Late 2023"]
[White "Winslow, Elliott"]
[Black "Baches Garcia, Guillermo"]
[WhiteFideId "2002523"]
[BlackFideId "2209764"]
[WhiteElo "2200"]
[BlackElo "2466"]
[Result "1/2-1/2"]
[Round "02"]
[TimeControl "180+1"]
[Date "2023.03.14"]
[WhiteClock "0:01:48"]
[BlackClock "0:01:51"]

1. e4 {[%clk 0:03:00]}  d5 {[%clk 0:02:59]} 2. exd5 {[%clk 0:02:59]}  Qxd5 {[%clk 0:03:00]} 3. Nc3 {[%clk 0:02:59]}  Qa5 {[%clk 0:03:00]} 4. d4 {[%clk 0:02:58]}  c6 {[%clk 0:03:00]} 5. Bc4 {[%clk 0:02:56]}  Bf5 {[%clk 0:02:59]} 6. Nf3 {[%clk 0:02:53]}  e6 {[%clk 0:02:58]} 7. Bd2 {[%clk 0:02:52]}  Nf6 {[%clk 0:02:57]} 8. Qe2 {[%clk 0:02:45]}  Bb4 {[%clk 0:02:53]} 9. a3 {[%clk 0:02:38]}  Nbd7 {[%clk 0:02:52]} 10. O-O {[%clk 0:02:37]}  Bxc3 {[%clk 0:02:52]} 11. Bxc3 {[%clk 0:02:37]}  Qc7 {[%clk 0:02:52]} 12. Ne5 {[%clk 0:02:30]}  Nb6 {[%clk 0:02:48]} 13. Bd3 {[%clk 0:02:23]}  Bxd3 {[%clk 0:02:43]} 14. Qxd3 {[%clk 0:02:23]}  O-O-O {[%clk 0:02:38]} 15. Rfd1 {[%clk 0:02:10]}  Kb8 {[%clk 0:02:27]} 16. Ba5 {[%clk 0:02:03]}  Qe7 {[%clk 0:02:14]} 17. Qb3 {[%clk 0:01:51]}  Nfd7 {[%clk 0:01:51]} 18. Nxd7+ {[%clk 0:01:49]}  Rxd7 {[%clk 0:01:51]} 19. Bxb6 {[%clk 0:01:48]}  axb6 {[%clk 0:01:51]} 20. Qxb6 {[%clk 0:01:48]}  Rhd8 {[%clk 0:01:51]} 1/2-1/2


[Site "https://www.chess.com"]

[Event "Titled Tuesday Blitz March 14 Late 2023"]
[White "Yang, Kevin"]
[Black "Burg, Twan"]
[WhiteFideId "30908485"]
[BlackFideId "1010697"]
[WhiteElo "2055"]
[BlackElo "2422"]
[Result "0-1"]
[Round "02"]
[TimeControl "180+1"]
[Date "2023.03.14"]
[WhiteClock "0:00:06"]
[BlackClock "0:00:55"]

1. d4 {[%clk 0:03:00]}  Nf6 {[%clk 0:02:59]} 2. Nc3 {[%clk 0:03:00]}  d5 {[%clk 0:02:57]} 3. Bf4 {[%clk 0:03:00]}  c5 {[%clk 0:02:57]} 4. e3 {[%clk 0:02:59]}  cxd4 {[%clk 0:02:57]} 5. exd4 {[%clk 0:02:59]}  a6 {[%clk 0:02:56]} 6. Nf3 {[%clk 0:02:58]}  Bg4 {[%clk 0:02:49]} 7. h3 {[%clk 0:02:58]}  Bxf3 {[%clk 0:02:49]} 8. Qxf3 {[%clk 0:02:57]}  Nc6 {[%clk 0:02:49]} 9. O-O-O {[%clk 0:02:54]}  e6 {[%clk 0:02:49]} 10. g4 {[%clk 0:02:38]}  Rc8 {[%clk 0:02:42]} 11. g5 {[%clk 0:02:20]}  Nd7 {[%clk 0:02:40]} 12. Qe3 {[%clk 0:01:52]}  Qa5 {[%clk 0:02:28]} 13. Kb1 {[%clk 0:01:41]}  Ne7 {[%clk 0:02:14]} 14. Bd3 {[%clk 0:01:03]}  Nb6 {[%clk 0:02:14]} 15. Ne2 {[%clk 0:00:46]}  Nc4 {[%clk 0:02:06]} 16. Bxc4 {[%clk 0:00:35]}  dxc4 {[%clk 0:02:07]} 17. Nc3 {[%clk 0:00:25]}  Nd5 {[%clk 0:02:07]} 18. Nxd5 {[%clk 0:00:24]}  Qxd5 {[%clk 0:02:08]} 19. c3 {[%clk 0:00:24]}  Be7 {[%clk 0:01:41]} 20. Rhe1 {[%clk 0:00:23]}  O-O {[%clk 0:01:39]} 21. Qe4 {[%clk 0:00:23]}  Rfd8 {[%clk 0:01:38]} 22. Qxd5 {[%clk 0:00:21]}  Rxd5 {[%clk 0:01:39]} 23. h4 {[%clk 0:00:21]}  b5 {[%clk 0:01:38]} 24. Re5 {[%clk 0:00:21]}  Rcd8 {[%clk 0:01:36]} 25. Rde1 {[%clk 0:00:21]}  a5 {[%clk 0:01:24]} 26. Rxd5 {[%clk 0:00:21]}  Rxd5 {[%clk 0:01:25]} 27. Re5 {[%clk 0:00:21]}  Rxe5 {[%clk 0:01:21]} 28. Bxe5 {[%clk 0:00:21]}  f6 {[%clk 0:01:22]} 29. gxf6 {[%clk 0:00:21]}  gxf6 {[%clk 0:01:22]} 30. Bc7 {[%clk 0:00:22]}  a4 {[%clk 0:01:23]} 31. h5 {[%clk 0:00:21]}  Kg7 {[%clk 0:01:20]} 32. Bf4 {[%clk 0:00:21]}  e5 {[%clk 0:01:12]} 33. dxe5 {[%clk 0:00:21]}  fxe5 {[%clk 0:01:13]} 34. Bxe5+ {[%clk 0:00:21]}  Kh6 {[%clk 0:01:13]} 35. Kc2 {[%clk 0:00:20]}  Kxh5 {[%clk 0:01:14]} 36. b3 {[%clk 0:00:21]}  Kg4 {[%clk 0:01:13]} 37. bxa4 {[%clk 0:00:20]}  bxa4 {[%clk 0:01:13]} 38. Kd2 {[%clk 0:00:21]}  Kf3 {[%clk 0:01:14]} 39. Ke1 {[%clk 0:00:15]}  Bc5 {[%clk 0:01:13]} 40. Bg3 {[%clk 0:00:12]}  h5 {[%clk 0:01:12]} 41. Kf1 {[%clk 0:00:12]}  Be7 {[%clk 0:01:09]} 42. Be5 {[%clk 0:00:10]}  h4 {[%clk 0:00:58]} 43. Kg1 {[%clk 0:00:07]}  Bc5 {[%clk 0:00:57]} 44. Kh2 {[%clk 0:00:06]}  Bxf2 {[%clk 0:00:57]} 45. Kh3 {[%clk 0:00:06]}  Ke4 {[%clk 0:00:57]} 46. Bf6 {[%clk 0:00:06]}  Kd3 {[%clk 0:00:57]} 47. Bg7 {[%clk 0:00:04]}  Be1 {[%clk 0:00:57]} 48. Bf6 {[%clk 0:00:05]}  Bxc3 {[%clk 0:00:57]} 49. Bxh4 {[%clk 0:00:05]}  Bd2 {[%clk 0:00:55]} 50. Kg2 {[%clk 0:00:06]}  c3 {[%clk 0:00:54]} 51. Bf6 {[%clk 0:00:06]}  c2 {[%clk 0:00:55]} 0-1


[Site "https://www.chess.com"]

[Event "Titled Tuesday Blitz March 14 Late 2023"]
[White "Yeletsky, Ivan"]
[Black "Reprintsev, Alexander"]
[WhiteFideId "24180327"]
[BlackFideId "14100541"]
[WhiteElo "2414"]
[BlackElo "2229"]
[Result "1-0"]
[Round "02"]
[TimeControl "180+1"]
[Date "2023.03.14"]
[WhiteClock "0:00:05"]
[BlackClock "0:00:08"]

1. c4 {[%clk 0:03:00]}  e6 {[%clk 0:02:52]} 2. g3 {[%clk 0:02:58]}  d5 {[%clk 0:02:51]} 3. Nf3 {[%clk 0:02:59]}  dxc4 {[%clk 0:02:43]} 4. Qa4+ {[%clk 0:02:55]}  Qd7 {[%clk 0:02:43]} 5. Qxc4 {[%clk 0:02:54]}  Qc6 {[%clk 0:02:44]} 6. b3 {[%clk 0:02:43]}  b5 {[%clk 0:02:44]} 7. Qxc6+ {[%clk 0:02:35]}  Nxc6 {[%clk 0:02:43]} 8. Bg2 {[%clk 0:02:36]}  Bb7 {[%clk 0:02:42]} 9. Nc3 {[%clk 0:02:31]}  a6 {[%clk 0:02:39]} 10. Ne5 {[%clk 0:02:19]}  Nd8 {[%clk 0:02:39]} 11. Bxb7 {[%clk 0:02:17]}  Nxb7 {[%clk 0:02:40]} 12. Bb2 {[%clk 0:02:09]}  f6 {[%clk 0:02:39]} 13. Nf3 {[%clk 0:02:02]}  c5 {[%clk 0:02:34]} 14. a4 {[%clk 0:01:59]}  b4 {[%clk 0:02:33]} 15. Na2 {[%clk 0:01:45]}  e5 {[%clk 0:02:33]} 16. d3 {[%clk 0:01:45]}  Ne7 {[%clk 0:02:32]} 17. Nd2 {[%clk 0:01:44]}  Nc6 {[%clk 0:02:28]} 18. e3 {[%clk 0:01:40]}  O-O-O {[%clk 0:02:23]} 19. Ke2 {[%clk 0:01:40]}  Be7 {[%clk 0:02:21]} 20. f4 {[%clk 0:01:34]}  exf4 {[%clk 0:02:20]} 21. gxf4 {[%clk 0:01:33]}  Rd7 {[%clk 0:02:20]} 22. Nc4 {[%clk 0:01:33]}  Kc7 {[%clk 0:02:16]} 23. Rhg1 {[%clk 0:01:31]}  g6 {[%clk 0:02:15]} 24. Rad1 {[%clk 0:01:23]}  Rhd8 {[%clk 0:02:15]} 25. Nc1 {[%clk 0:01:23]}  Nba5 {[%clk 0:02:10]} 26. Nd2 {[%clk 0:01:17]}  f5 {[%clk 0:02:08]} 27. Nf3 {[%clk 0:01:12]}  Kb6 {[%clk 0:02:02]} 28. h4 {[%clk 0:01:09]}  Rd6 {[%clk 0:01:59]} 29. Rh1 {[%clk 0:01:04]}  Rg8 {[%clk 0:01:48]} 30. Rdg1 {[%clk 0:01:02]}  Bf6 {[%clk 0:01:17]} 31. Bxf6 {[%clk 0:01:01]}  Rxf6 {[%clk 0:01:17]} 32. h5 {[%clk 0:01:02]}  Re8 {[%clk 0:01:03]} 33. Kf2 {[%clk 0:00:56]}  Rfe6 {[%clk 0:01:02]} 34. Re1 {[%clk 0:00:55]}  R8e7 {[%clk 0:00:57]} 35. Ng5 {[%clk 0:00:52]}  Rd6 {[%clk 0:00:53]} 36. hxg6 {[%clk 0:00:52]}  hxg6 {[%clk 0:00:54]} 37. Rh8 {[%clk 0:00:52]}  Red7 {[%clk 0:00:53]} 38. Ke2 {[%clk 0:00:50]}  Nxb3 {[%clk 0:00:48]} 39. Nxb3 {[%clk 0:00:50]}  Rxd3 {[%clk 0:00:49]} 40. Rb1 {[%clk 0:00:23]}  Rc3 {[%clk 0:00:44]} 41. Ne6 {[%clk 0:00:19]}  Rdd3 {[%clk 0:00:33]} 42. Nbxc5 {[%clk 0:00:08]}  Rxe3+ {[%clk 0:00:33]} 43. Kf2 {[%clk 0:00:07]}  Rf3+ {[%clk 0:00:33]} 44. Kg2 {[%clk 0:00:08]}  Rg3+ {[%clk 0:00:27]} 45. Kh2 {[%clk 0:00:08]}  Rge3 {[%clk 0:00:23]} 46. a5+ {[%clk 0:00:09]}  Kb5 {[%clk 0:00:21]} 47. Rh7 {[%clk 0:00:07]}  Rxc5 {[%clk 0:00:19]} 48. Rb7+ {[%clk 0:00:07]}  Kc4 {[%clk 0:00:20]} 49. Nxc5 {[%clk 0:00:06]}  Kxc5 {[%clk 0:00:19]} 50. Rb6 {[%clk 0:00:06]}  Re4 {[%clk 0:00:17]} 51. Rxa6 {[%clk 0:00:06]}  Nd4 {[%clk 0:00:13]} 52. Rxg6 {[%clk 0:00:05]}  Nf3+ {[%clk 0:00:13]} 53. Kg3 {[%clk 0:00:04]}  Nd2 {[%clk 0:00:13]} 54. Ra1 {[%clk 0:00:04]}  Nb3 {[%clk 0:00:13]} 55. Rb1 {[%clk 0:00:04]}  Nxa5 {[%clk 0:00:11]} 56. Rg5 {[%clk 0:00:04]}  Kc4 {[%clk 0:00:10]} 57. Rxf5 {[%clk 0:00:05]}  Nb3 {[%clk 0:00:10]} 58. Rf8 {[%clk 0:00:05]}  Re3+ {[%clk 0:00:11]} 59. Kf2 {[%clk 0:00:04]}  Re7 {[%clk 0:00:10]} 60. Rc8+ {[%clk 0:00:04]}  Nc5 {[%clk 0:00:07]} 61. Rc1+ {[%clk 0:00:05]}  Kd3 {[%clk 0:00:07]} 62. R8xc5 {[%clk 0:00:05]}  b3 {[%clk 0:00:08]} 63. R1c3+ {[%clk 0:00:03]}  Kd4 {[%clk 0:00:08]} 64. R5c4+ {[%clk 0:00:04]}  Kd5 {[%clk 0:00:08]} 65. Rb4 {[%clk 0:00:05]} 1-0


[Site "https://www.chess.com"]

[Event "Titled Tuesday Blitz March 14 Late 2023"]
[White "Zakhartsov, Vladimir"]
[Black "Wadsworth, Matthew J"]
[WhiteFideId "4145097"]
[BlackFideId "415804"]
[WhiteElo "2521"]
[BlackElo "2330"]
[Result "0-1"]
[Round "02"]
[TimeControl "180+1"]
[Date "2023.03.14"]
[WhiteClock "0:00:02"]
[BlackClock "0:00:08"]

1. c4 {[%clk 0:02:53]}  e5 {[%clk 0:02:58]} 2. Nc3 {[%clk 0:02:53]}  Bb4 {[%clk 0:02:55]} 3. Nd5 {[%clk 0:02:53]}  Be7 {[%clk 0:02:55]} 4. d4 {[%clk 0:02:53]}  d6 {[%clk 0:02:55]} 5. Nf3 {[%clk 0:02:52]}  c6 {[%clk 0:02:53]} 6. Nc3 {[%clk 0:02:47]}  exd4 {[%clk 0:02:51]} 7. Nxd4 {[%clk 0:02:47]}  Nf6 {[%clk 0:02:49]} 8. g3 {[%clk 0:02:43]}  O-O {[%clk 0:02:47]} 9. Bg2 {[%clk 0:02:41]}  Nbd7 {[%clk 0:02:43]} 10. O-O {[%clk 0:02:22]}  Nc5 {[%clk 0:02:43]} 11. b3 {[%clk 0:02:22]}  a5 {[%clk 0:02:43]} 12. a3 {[%clk 0:02:16]}  Re8 {[%clk 0:02:39]} 13. Bb2 {[%clk 0:02:16]}  Bf8 {[%clk 0:02:35]} 14. Qc2 {[%clk 0:02:15]}  Bg4 {[%clk 0:02:33]} 15. e4 {[%clk 0:02:05]}  Qc8 {[%clk 0:02:30]} 16. Rfe1 {[%clk 0:01:59]}  Bh3 {[%clk 0:02:29]} 17. Bh1 {[%clk 0:01:59]}  h5 {[%clk 0:02:27]} 18. Rad1 {[%clk 0:01:52]}  h4 {[%clk 0:02:20]} 19. b4 {[%clk 0:01:49]}  axb4 {[%clk 0:02:16]} 20. axb4 {[%clk 0:01:50]}  Na6 {[%clk 0:02:15]} 21. Qb3 {[%clk 0:01:45]}  Nxb4 {[%clk 0:02:05]} 22. Qxb4 {[%clk 0:01:35]}  c5 {[%clk 0:02:05]} 23. Qb3 {[%clk 0:01:34]}  cxd4 {[%clk 0:02:02]} 24. Nb5 {[%clk 0:01:32]}  hxg3 {[%clk 0:01:59]} 25. hxg3 {[%clk 0:01:22]}  Be6 {[%clk 0:01:32]} 26. Rc1 {[%clk 0:01:21]}  Nd7 {[%clk 0:01:11]} 27. Bxd4 {[%clk 0:01:16]}  Ne5 {[%clk 0:01:07]} 28. f4 {[%clk 0:00:56]}  Bxc4 {[%clk 0:00:55]} 29. Qe3 {[%clk 0:00:18]}  Nd3 {[%clk 0:00:54]} 30. Na7 {[%clk 0:00:18]}  Rxa7 {[%clk 0:00:51]} 31. Bxa7 {[%clk 0:00:19]}  Nxe1 {[%clk 0:00:50]} 32. Qxe1 {[%clk 0:00:19]}  b5 {[%clk 0:00:48]} 33. Bd4 {[%clk 0:00:18]}  Qg4 {[%clk 0:00:33]} 34. Qe3 {[%clk 0:00:14]}  Ra8 {[%clk 0:00:24]} 35. e5 {[%clk 0:00:11]}  Ra2 {[%clk 0:00:22]} 36. exd6 {[%clk 0:00:10]}  Qh3 {[%clk 0:00:16]} 37. Qf2 {[%clk 0:00:02]}  Rxf2 {[%clk 0:00:14]} 38. Bxf2 {[%clk 0:00:03]}  Bxd6 {[%clk 0:00:13]} 39. Rd1 {[%clk 0:00:03]}  Be7 {[%clk 0:00:08]} 40. Re1 {[%clk 0:00:02]}  Bf6 {[%clk 0:00:08]} 41. Re8+ {[%clk 0:00:02]}  Kh7 {[%clk 0:00:08]} 0-1


[Site "https://www.chess.com"]

[Event "Titled Tuesday Blitz March 14 Late 2023"]
[White "Zampronha, Wladimir Camilo"]
[Black "Shapiro, Viktor"]
[WhiteFideId "2103087"]
[BlackFideId "4175700"]
[WhiteElo "2176"]
[BlackElo "2152"]
[Result "1-0"]
[Round "02"]
[TimeControl "180+1"]
[Date "2023.03.14"]
[WhiteClock "0:00:16"]
[BlackClock "0:00:26"]

1. e4 {[%clk 0:02:52]}  Nf6 {[%clk 0:03:00]} 2. e5 {[%clk 0:02:48]}  Nd5 {[%clk 0:03:00]} 3. d4 {[%clk 0:02:48]}  d6 {[%clk 0:03:00]} 4. c4 {[%clk 0:02:48]}  Nb6 {[%clk 0:03:00]} 5. exd6 {[%clk 0:02:48]}  cxd6 {[%clk 0:03:00]} 6. Nc3 {[%clk 0:02:47]}  g6 {[%clk 0:03:00]} 7. Be3 {[%clk 0:02:46]}  Bg7 {[%clk 0:03:00]} 8. Rc1 {[%clk 0:02:46]}  O-O {[%clk 0:03:00]} 9. b3 {[%clk 0:02:46]}  f5 {[%clk 0:02:58]} 10. d5 {[%clk 0:02:44]}  e5 {[%clk 0:02:56]} 11. dxe6 {[%clk 0:02:43]}  Nc6 {[%clk 0:02:56]} 12. Nf3 {[%clk 0:02:39]}  f4 {[%clk 0:02:56]} 13. Bd4 {[%clk 0:02:38]}  Nxd4 {[%clk 0:02:55]} 14. Nxd4 {[%clk 0:02:38]}  Qf6 {[%clk 0:02:51]} 15. Ndb5 {[%clk 0:02:31]}  Bxe6 {[%clk 0:02:48]} 16. Be2 {[%clk 0:02:00]}  a6 {[%clk 0:02:30]} 17. Nxd6 {[%clk 0:01:59]}  Rad8 {[%clk 0:02:21]} 18. c5 {[%clk 0:01:59]}  f3 {[%clk 0:01:43]} 19. Bxf3 {[%clk 0:01:50]}  Qe5+ {[%clk 0:01:42]} 20. Nce4 {[%clk 0:01:49]}  Bd5 {[%clk 0:01:20]} 21. O-O {[%clk 0:01:48]}  Nc8 {[%clk 0:01:06]} 22. Re1 {[%clk 0:01:41]}  Nxd6 {[%clk 0:00:52]} 23. cxd6 {[%clk 0:01:40]}  Bc6 {[%clk 0:00:48]} 24. Qc2 {[%clk 0:01:24]}  Rxf3 {[%clk 0:00:38]} 25. gxf3 {[%clk 0:01:24]}  Qf5 {[%clk 0:00:31]} 26. Qd3 {[%clk 0:00:49]}  Be5 {[%clk 0:00:20]} 27. Rcd1 {[%clk 0:00:43]}  Kg7 {[%clk 0:00:20]} 28. Ng3 {[%clk 0:00:42]}  Qf6 {[%clk 0:00:17]} 29. Ne4 {[%clk 0:00:25]}  Qf4 {[%clk 0:00:18]} 30. Ng3 {[%clk 0:00:25]}  Bxf3 {[%clk 0:00:16]} 31. Rxe5 {[%clk 0:00:21]}  Qxe5 {[%clk 0:00:16]} 32. Qxf3 {[%clk 0:00:20]}  Rd7 {[%clk 0:00:16]} 33. Qe3 {[%clk 0:00:18]}  Qf6 {[%clk 0:00:15]} 34. Qd4 {[%clk 0:00:18]}  Qxd4 {[%clk 0:00:15]} 35. Rxd4 {[%clk 0:00:18]}  Kf6 {[%clk 0:00:16]} 36. Kg2 {[%clk 0:00:15]}  Ke5 {[%clk 0:00:17]} 37. Re4+ {[%clk 0:00:14]}  Kd5 {[%clk 0:00:17]} 38. Re2 {[%clk 0:00:14]}  Rxd6 {[%clk 0:00:16]} 39. Rd2+ {[%clk 0:00:15]}  Kc6 {[%clk 0:00:16]} 40. Rxd6+ {[%clk 0:00:15]}  Kxd6 {[%clk 0:00:17]} 41. Kf3 {[%clk 0:00:16]}  Kd5 {[%clk 0:00:17]} 42. Kf4 {[%clk 0:00:16]}  Kd4 {[%clk 0:00:17]} 43. Ne4 {[%clk 0:00:15]}  b5 {[%clk 0:00:18]} 44. h4 {[%clk 0:00:15]}  a5 {[%clk 0:00:18]} 45. Ng5 {[%clk 0:00:15]}  h6 {[%clk 0:00:18]} 46. Nf7 {[%clk 0:00:14]}  g5+ {[%clk 0:00:19]} 47. Nxg5 {[%clk 0:00:13]}  hxg5+ {[%clk 0:00:20]} 48. hxg5 {[%clk 0:00:14]}  Kc3 {[%clk 0:00:21]} 49. g6 {[%clk 0:00:14]}  Kb2 {[%clk 0:00:21]} 50. g7 {[%clk 0:00:15]}  Kxa2 {[%clk 0:00:22]} 51. g8=Q {[%clk 0:00:15]}  b4 {[%clk 0:00:22]} 52. Qd5 {[%clk 0:00:13]}  Ka3 {[%clk 0:00:22]} 53. Qxa5+ {[%clk 0:00:13]}  Kxb3 {[%clk 0:00:23]} 54. Qxb4+ {[%clk 0:00:13]}  Kxb4 {[%clk 0:00:23]} 55. Ke5 {[%clk 0:00:14]}  Kc5 {[%clk 0:00:24]} 56. Ke6 {[%clk 0:00:13]}  Kc6 {[%clk 0:00:25]} 57. f4 {[%clk 0:00:14]}  Kc7 {[%clk 0:00:25]} 58. Ke7 {[%clk 0:00:14]}  Kc6 {[%clk 0:00:26]} 59. f5 {[%clk 0:00:15]}  Kd5 {[%clk 0:00:26]} 60. f6 {[%clk 0:00:16]} 1-0


[Site "https://www.chess.com"]

[Event "Titled Tuesday Blitz March 14 Late 2023"]
[White "Romkachess"]
[Black "Madaminov, Mukhiddin"]
[BlackFideId "14210703"]
[WhiteElo "2576"]
[BlackElo "2511"]
[Result "0-1"]
[Round "02"]
[TimeControl "180+2"]
[Date "2023.03.14"]
[WhiteClock "0:00:14"]
[BlackClock "0:00:07"]

1. e4 {[%clk 0:03:00]}  e5 {[%clk 0:02:59]} 2. d4 {[%clk 0:02:58]}  exd4 {[%clk 0:02:58]} 3. Qxd4 {[%clk 0:02:59]}  Nc6 {[%clk 0:02:58]} 4. Qe3 {[%clk 0:02:57]}  g6 {[%clk 0:02:58]} 5. Nc3 {[%clk 0:02:57]}  Bg7 {[%clk 0:02:58]} 6. Bd2 {[%clk 0:02:57]}  Nge7 {[%clk 0:02:58]} 7. O-O-O {[%clk 0:02:57]}  O-O {[%clk 0:02:59]} 8. Bc4 {[%clk 0:02:57]}  Na5 {[%clk 0:02:40]} 9. Bb3 {[%clk 0:02:57]}  Nxb3+ {[%clk 0:02:40]} 10. axb3 {[%clk 0:02:58]}  f5 {[%clk 0:02:31]} 11. e5 {[%clk 0:02:22]}  Nc6 {[%clk 0:02:24]} 12. f4 {[%clk 0:02:16]}  Re8 {[%clk 0:02:01]} 13. h4 {[%clk 0:01:41]}  d6 {[%clk 0:01:28]} 14. h5 {[%clk 0:01:41]}  dxe5 {[%clk 0:01:29]} 15. hxg6 {[%clk 0:01:41]}  hxg6 {[%clk 0:01:30]} 16. Qh3 {[%clk 0:01:34]}  e4 {[%clk 0:01:16]} 17. Nge2 {[%clk 0:00:53]}  Be6 {[%clk 0:01:15]} 18. Be1 {[%clk 0:00:53]}  Qf6 {[%clk 0:01:02]} 19. Bh4 {[%clk 0:00:49]}  Qf8 {[%clk 0:01:01]} 20. Bg5 {[%clk 0:00:47]}  a5 {[%clk 0:00:57]} 21. Qh7+ {[%clk 0:00:42]}  Kf7 {[%clk 0:00:57]} 22. Rh6 {[%clk 0:00:43]}  Qg8 {[%clk 0:00:34]} 23. Qxg6+ {[%clk 0:00:42]}  Kf8 {[%clk 0:00:35]} 24. Rh7 {[%clk 0:00:22]}  Ne7 {[%clk 0:00:35]} 25. Bxe7+ {[%clk 0:00:20]}  Rxe7 {[%clk 0:00:35]} 26. Rhh1 {[%clk 0:00:19]}  a4 {[%clk 0:00:34]} 27. bxa4 {[%clk 0:00:19]}  b5 {[%clk 0:00:27]} 28. g4 {[%clk 0:00:19]}  b4 {[%clk 0:00:27]} 29. Nd5 {[%clk 0:00:18]}  Bxb2+ {[%clk 0:00:15]} 30. Kxb2 {[%clk 0:00:17]}  Qxg6 {[%clk 0:00:15]} 31. Nxe7 {[%clk 0:00:17]}  Qf6+ {[%clk 0:00:12]} 32. Nd4 {[%clk 0:00:17]}  Kxe7 {[%clk 0:00:08]} 33. Rh7+ {[%clk 0:00:17]}  Kf8 {[%clk 0:00:08]} 34. g5 {[%clk 0:00:15]}  Qg6 {[%clk 0:00:06]} 35. Rh6 {[%clk 0:00:15]}  Qe8 {[%clk 0:00:02]} 36. Nxe6+ {[%clk 0:00:14]}  Ke7 {[%clk 0:00:02]} 37. Nc5 {[%clk 0:00:13]}  Qg8 {[%clk 0:00:01]} 38. Rd7+ {[%clk 0:00:11]}  Ke8 {[%clk 0:00:02]} 39. Re6+ {[%clk 0:00:11]}  Qxe6 {[%clk 0:00:02]} 40. Nxe6 {[%clk 0:00:10]}  Kxd7 {[%clk 0:00:03]} 41. Nd4 {[%clk 0:00:11]}  Rxa4 {[%clk 0:00:02]} 42. Nxf5 {[%clk 0:00:10]}  Ra5 {[%clk 0:00:02]} 43. Ne3 {[%clk 0:00:10]}  Ra3 {[%clk 0:00:02]} 44. Nc4 {[%clk 0:00:09]}  Rf3 {[%clk 0:00:01]} 45. Ne5+ {[%clk 0:00:09]}  Ke6 {[%clk 0:00:02]} 46. Nc6 {[%clk 0:00:07]}  Rxf4 {[%clk 0:00:01]} 47. g6 {[%clk 0:00:08]}  Rg4 {[%clk 0:00:01]} 48. Nd8+ {[%clk 0:00:08]}  Kf6 {[%clk 0:00:02]} 49. g7 {[%clk 0:00:08]}  Rxg7 {[%clk 0:00:02]} 50. Nb7 {[%clk 0:00:09]}  Ke5 {[%clk 0:00:02]} 51. Nc5 {[%clk 0:00:10]}  Kd5 {[%clk 0:00:03]} 52. Nb3 {[%clk 0:00:10]}  c5 {[%clk 0:00:03]} 53. Nc1 {[%clk 0:00:10]}  e3 {[%clk 0:00:04]} 54. Ne2 {[%clk 0:00:11]}  c4 {[%clk 0:00:05]} 55. Nf4+ {[%clk 0:00:11]}  Ke4 {[%clk 0:00:06]} 56. Ne6 {[%clk 0:00:12]}  Re7 {[%clk 0:00:05]} 57. Ng5+ {[%clk 0:00:12]}  Kd5 {[%clk 0:00:05]} 58. Kb1 {[%clk 0:00:13]}  e2 {[%clk 0:00:06]} 59. Kc1 {[%clk 0:00:14]}  e1=Q+ {[%clk 0:00:07]} 60. Kb2 {[%clk 0:00:14]}  Qc3+ {[%clk 0:00:07]} 0-1


[Site "https://www.chess.com"]